[Event "Konyaalti Open-B 2019"]
[Site "Konyaalti"]
[Date "2019.11.19"]
[Round "5.4"]
[White "Guler, Muhammed Talha"]
[Black "Ipek, Egehan"]
[Result "1/2-1/2"]
[ECO "B41"]
[WhiteElo "1646"]
[BlackElo "1590"]
[Annotator "NA RC"]
[PlyCount "96"]
[EventDate "2019.11.20"]
[EventType "swiss"]
[EventCountry "TUR"]
[SourceTitle "playchess.com"]
[Source "ChessBase"]
[SourceQuality "1"]
[TimeControl "5400+30"]

1. e4 {[%emt 0:00:30]} c5 {[%emt 0:00:30]} 2. c4 {[%emt 0:00:00]} e6 {[%emt 0:00:30]} 3. Nc3 {[%emt 0:00:00]} Nc6 {[%emt 0:00:30]} 4. Nge2 {[%emt 0:00:30]} a6 {[%emt 0:01:30]} 5. d4 {[%emt 0:00:30]} cxd4 {[%emt 0:00:30]} 6. Nxd4 {[%emt 0:00:00]} Qc7 {[%emt 0:01:30]} 7. Be3 {[%emt 0:00:00]} Nf6 {[%emt 0:00:30]} 8. Be2 {[%emt 0:00:00]} Bb4 {[%emt 0:00:30]} 9. f3 {[%emt 0:00:00]} O-O {[%emt 0:02:30]} 10. Rc1 {[%emt 0:02:30]} d5 {[%emt 0:01:30]} 11. cxd5 {[%emt 0:06:30]} exd5 {[%emt 0:00:30]} 12. Nxc6 {[%emt 0:00:30]} bxc6 {[%emt 0:01:30]} 13. Qa4 {[%emt 0:06:30]} c5 {[%emt 0:03:30]} 14. O-O {[%emt 0:01:30]} Bd7 {[%emt 0:02:30]} 15. Qb3 {[%emt 0:00:00]} d4 {[%emt 0:01:30]} 16. Bxd4 {[%emt 0:01:00]} cxd4 {[%emt 0:01:30]} 17. Nd5 {[%emt 0:00:30]} Qa7 {[%emt 0:00:30]} 18. Rc7 {[%emt 0:00:30]} Qb8 {[%emt 0:05:30]} 19. Nxf6+ {[%emt 0:00:30]} gxf6 {[%emt 0:00:00]} 20. Rxd7 {[%emt 0:00:00]} Bc5 {[%emt 0:00:00]} 21. Bc4 {[%emt 0:14:00]} Qxb3 {[%emt 0:01:30]} 22. axb3 {[%emt 0:03:30]} Rad8 {[%emt 0:07:30]} 23. Bxf7+ {[%emt 0:02:30]} Kg7 {[%emt 0:00:30]} 24. Rxd8 {[%emt 0:00:00]} Rxd8 {[%emt 0:00:30]} 25. Bc4 {[%emt 0:00:00]} d3+ {[%emt 0:01:30]} 26. Kh1 {[%emt 0:00:30]} d2 {[%emt 0:00:00]} 27. Rd1 {[%emt 0:00:00]} a5 {[%emt 0:01:00]} 28. Bd5 {[%emt 0:04:00]} Bb4 {[%emt 0:03:30]} 29. g4 {[%emt 0:06:30]} Rc8 {[%emt 0:01:30]} 30. Bc4 {[%emt 0:00:30]} Kg6 {[%emt 0:01:30]} 31. h4 {[%emt 0:01:30]} h5 {[%emt 0:03:03]} 32. Kg2 {[%emt 0:06:30]} hxg4 {[%emt 0:00:00]} 33. f4 {[%emt 0:01:30]} Rc7 {[%emt 0:03:27]} 34. Be6 {[%emt 0:09:30]} Rc2 {[%emt 0:07:30]} 35. Kg3 {[%emt 0:00:30]} Rxb2 {[%emt 0:01:30]} 36. Kxg4 {[%emt 0:00:00]} Rc2 {[%emt 0:00:30]} 37. Kf3 {[%emt 0:00:00]} Rc1 {[%emt 0:00:30]} 38. Ke2 {[%emt 0:00:30]} Kh5 {[%emt 0:01:30]} 39. Bd5 {[%emt 0:01:30]} Kxh4 {[%emt 0:01:30]} 40. Rxd2 {[%emt 0:03:30]} Bxd2 {[%emt 0:01:30]} 41. Kxd2 {[%emt 0:02:59]} Rf1 {[%emt 0:00:30]} 42. Ke3 {[%emt 0:00:00]} Kg3 {[%emt 0:00:30]} 43. e5 {[%emt 0:00:31]} fxe5 {[%emt 0:01:30]} 44. fxe5 {[%emt 0:01:09]} Re1+ {[%emt 0:01:30]} 45. Kd4 {[%emt 0:00:51]} Kf4 {[%emt 0:00:30]} 46. e6 {[%emt 0:00:00]} Kf5 {[%emt 0:00:30]} 47. Kc5 {[%emt 0:01:00]} Kf6 {[%emt 0:00:00]} 48. Bc4 {[%emt 0:01:30]} Ke5 {[%emt 0:00:00]} 1/2-1/2

[Event "Konyaalti Open-B 2019"]
[Site "Konyaalti"]
[Date "2019.11.21"]
[Round "6.11"]
[White "Karahan, Anil"]
[Black "Egeli, Sercan Veli"]
[Result "0-1"]
[ECO "D85"]
[WhiteElo "1767"]
[BlackElo "1478"]
[Annotator "NA"]
[PlyCount "76"]
[EventDate "2019.11.20"]
[EventType "swiss"]
[EventCountry "TUR"]
[SourceTitle "playchess.com"]
[Source "ChessBase"]
[SourceQuality "1"]
[TimeControl "5400+30"]

1. d4 {[%emt 0:00:30]} Nf6 {[%emt 0:00:30]} 2. c4 {[%emt 0:01:30]} g6 {[%emt 0:02:30]} 3. Nc3 {[%emt 0:00:30]} d5 {[%emt 0:00:30]} 4. cxd5 {[%emt 0:04:30]} Nxd5 {[%emt 0:00:30]} 5. e4 {[%emt 0:00:30]} Nxc3 {[%emt 0:00:00]} 6. bxc3 {[%emt 0:00:00]} Bg7 {[%emt 0:00:00]} 7. Bb5+ {[%emt 0:00:00]} c6 {[%emt 0:00:30]} 8. Ba4 {[%emt 0:01:30]} O-O {[%emt 0:00:30]} 9. Ne2 {[%emt 0:00:00]} c5 {[%emt 0:02:30]} 10. O-O {[%emt 0:00:00]} Qa5 {[%emt 0:09:30]} 11. Be3 {[%emt 0:01:30]} Bd7 {[%emt 0:17:30]} 12. Bb3 {[%emt 0:05:30]} cxd4 {[%emt 0:08:30]} 13. cxd4 {[%emt 0:00:30]} Bc6 {[%emt 0:01:30]} 14. f3 {[%emt 0:04:30]} Rd8 {[%emt 0:06:30]} 15. Rc1 {[%emt 0:02:30]} Na6 {[%emt 0:00:30]} 16. Rf2 {[%emt 0:10:30]} e6 {[%emt 0:01:30]} 17. Ng3 {[%emt 0:15:30]} h5 {[%emt 0:12:30]} 18. Rd2 {[%emt 0:00:30]} Rd7 {[%emt 0:00:00]} 19. Ne2 {[%emt 0:26:30]} Rad8 {[%emt 0:12:00]} 20. Kf2 {[%emt 0:01:30]} Bf8 {[%emt 0:02:30]} 21. Nf4 {[%emt 0:03:47]} Nc7 {[%emt 0:07:09]} 22. Nd3 {[%emt 0:08:13]} Bb4 {[%emt 0:04:43]} 23. Nxb4 {[%emt 0:06:56]} Qxb4 {[%emt 0:00:30]} 24. Rc4 {[%emt 0:00:38]} Qe7 {[%emt 0:00:30]} 25. Rc5 {[%emt 0:00:37]} Na6 {[%emt 0:00:30]} 26. Rc3 {[%emt 0:00:36]} Nc7 {[%emt 0:00:30]} 27. a4 {[%emt 0:00:36]} Kh7 {[%emt 0:00:30]} 28. Kg1 {[%emt 0:00:15]} f5 {[%emt 0:00:39]} 29. Bc2 {[%emt 0:00:28]} Ne8 {[%emt 0:00:37]} 30. h3 {[%emt 0:00:30]} Nd6 {[%emt 0:06:40]} 31. d5 {[%emt 0:00:11]} exd5 {[%emt 0:01:55]} 32. exd5 {[%emt 0:00:30]} Qe5 {[%emt 0:00:39]} 33. Bd4 {[%emt 0:03:01]} Qxd5 {[%emt 0:00:42]} 34. Bb3 {[%emt 0:00:40]} Qa5 {[%emt 0:00:27]} 35. Bf6 {[%emt 0:00:12]} Kh6 {[%emt 0:00:56]} 36. Bxd8 {[%emt 0:00:57]} Qxc3 {[%emt 0:00:12]} 37. Rxd6 {[%emt 0:00:04]} Qc5+ {[%emt 0:00:02]} 38. Qd4 {[%emt 0:01:08]} Qxd4+ {[%emt 0:00:00]} 0-1

[Event "Konyaalti Open-B 2019"]
[Site "Konyaalti"]
[Date "2019.11.21"]
[Round "6.12"]
[White "Ozen, Metehan"]
[Black "Demir, Zeki"]
[Result "1/2-1/2"]
[ECO "C06"]
[WhiteElo "1779"]
[BlackElo "1685"]
[Annotator "NA"]
[PlyCount "91"]
[EventDate "2019.11.20"]
[EventType "swiss"]
[EventCountry "TUR"]
[SourceTitle "playchess.com"]
[Source "ChessBase"]
[SourceQuality "1"]
[TimeControl "5400+30"]

1. e4 {[%emt 0:00:30]} e6 {[%emt 0:00:30]} 2. d4 {[%emt 0:00:00]} d5 {[%emt 0:00:00]} 3. Nd2 {[%emt 0:00:00]} Nf6 {[%emt 0:00:00]} 4. e5 {[%emt 0:00:00]} Nfd7 {[%emt 0:00:30]} 5. Bd3 {[%emt 0:00:00]} c5 {[%emt 0:00:00]} 6. c3 {[%emt 0:00:00]} Nc6 {[%emt 0:00:00]} 7. Ne2 {[%emt 0:00:00]} cxd4 {[%emt 0:00:30]} 8. cxd4 {[%emt 0:00:30]} f6 {[%emt 0:00:30]} 9. exf6 {[%emt 0:00:30]} Nxf6 {[%emt 0:00:00]} 10. Nf3 {[%emt 0:01:30]} Qc7 {[%emt 0:00:00]} 11. O-O {[%emt 0:02:30]} Bd6 {[%emt 0:00:30]} 12. Nc3 {[%emt 0:01:30]} a6 {[%emt 0:00:00]} 13. a3 {[%emt 0:04:30]} O-O {[%emt 0:01:00]} 14. h3 {[%emt 0:03:30]} Bd7 {[%emt 0:09:30]} 15. Qc2 {[%emt 0:08:30]} Bf4 {[%emt 0:15:30]} 16. Ne2 {[%emt 0:17:30]} Bd6 {[%emt 0:07:30]} 17. Be3 {[%emt 0:08:30]} Rac8 {[%emt 0:00:00]} 18. Rac1 {[%emt 0:00:30]} Qb8 {[%emt 0:02:00]} 19. Qb1 {[%emt 0:01:30]} Na5 {[%emt 0:03:30]} 20. Rxc8 {[%emt 0:00:30]} Rxc8 {[%emt 0:00:30]} 21. Bg5 {[%emt 0:00:30]} Ne4 {[%emt 0:07:30]} 22. Bxe4 {[%emt 0:01:30]} dxe4 {[%emt 0:00:30]} 23. Qxe4 {[%emt 0:01:30]} Nc4 {[%emt 0:06:30]} 24. Bc1 {[%emt 0:01:30]} Re8 {[%emt 0:03:30]} 25. Ng5 {[%emt 0:01:30]} g6 {[%emt 0:05:30]} 26. Qh4 {[%emt 0:02:30]} Re7 {[%emt 0:04:30]} 27. Ne4 {[%emt 0:01:30]} Bc6 {[%emt 0:08:30]} 28. Nf6+ {[%emt 0:02:30]} Kf7 {[%emt 0:05:30]} 29. Nxh7 {[%emt 0:04:30]} Qh8 {[%emt 0:02:39]} 30. Nf4 {[%emt 0:00:30]} Qxd4 {[%emt 0:02:03]} 31. b3 {[%emt 0:09:30]} Nxa3 {[%emt 0:04:42]} 32. Be3 {[%emt 0:06:32]} Qe5 {[%emt 0:02:46]} 33. Rd1 {[%emt 0:00:50]} Nb5 {[%emt 0:00:17]} 34. Qh6 {[%emt 0:10:14]} Qg7 {[%emt 0:01:45]} 35. Ng5+ {[%emt 0:01:27]} Ke8 {[%emt 0:00:52]} 36. Qxg7 {[%emt 0:02:58]} Rxg7 {[%emt 0:00:25]} 37. Nfxe6 {[%emt 0:00:56]} Rd7 {[%emt 0:00:54]} 38. Rd2 {[%emt 0:03:30]} Ke7 {[%emt 0:02:39]} 39. Bc5 {[%emt 0:00:47]} Bxc5 {[%emt 0:00:37]} 40. Rxd7+ {[%emt 0:00:07]} Bxd7 {[%emt 0:00:54]} 41. Nxc5 {[%emt 0:00:07]} Bc8 {[%emt 0:00:18]} 42. Nge4 {[%emt 0:00:55]} Nd4 {[%emt 0:00:38]} 43. Nd2 {[%emt 0:00:38]} b6 {[%emt 0:00:34]} 44. Na4 {[%emt 0:00:40]} b5 {[%emt 0:00:18]} 45. Nc5 {[%emt 0:00:43]} Kd6 {[%emt 0:00:23]} 46. Nd3 {[%emt 0:00:58]} 1/2-1/2

[Event "Konyaalti Open-B 2019"]
[Site "Konyaalti"]
[Date "2019.11.21"]
[Round "6.13"]
[White "Kazik, Oguz Kagan"]
[Black "Cekli, Cem"]
[Result "1-0"]
[ECO "D10"]
[WhiteElo "1638"]
[BlackElo "1812"]
[Annotator "NA"]
[PlyCount "101"]
[EventDate "2019.11.20"]
[EventType "swiss"]
[EventCountry "TUR"]
[SourceTitle "playchess.com"]
[Source "ChessBase"]
[SourceQuality "1"]
[TimeControl "5400+30"]

{[%evp 10,70,0,28,44,52,67,45,32,8,52,60,61,32767,32767,32767,153,137,154,137,148,104,146,105,114,128,137,132,115,126,143,86,85,52,74,51,90,75,86,92,91,83,107,100,163,148,218,237,222,189,224,227,226,170,179,146,32767,32767,32767,32767,167,180,183]} 1. d4 {[%emt 0:00:30]} d5 {[%emt 0:00:30]} 2. c4 {[%emt 0:00:00]} c6 {[%emt 0:00:00]} 3. cxd5 {[%emt 0:00:00]} cxd5 {[%emt 0:00:00]} 4. Nc3 {[%emt 0:00:30]} Nc6 {[%emt 0:00:30]} 5. e4 {[%emt 0:00:00]} e6 {[%emt 0:03:30]} (5... dxe4 6. d5 Ne5 7. Qd4 Nd3+ 8. Bxd3 exd3 9. Nf3 Nf6 10. Bg5 Bf5 11. O-O h6 12. Bxf6 gxf6 13. Rfe1 Qb6 14. Qf4 Bd7 15. Ne4 Bg7 16. Nd6+ Kf8 17. Nxf7 Kxf7 18. Ne5+ Ke8 19. Nxd7 Kxd7 20. Qg4+ Kd8 21. Qxg7 Re8 22. Rad1 Qxb2 23. d6 Qd4 24. dxe7+ {1-0 (24) Jobava,B (2690)-Mchedlishvili,M (2603) Riadh 2017}) 6. e5 {[%emt 0:01:00] D10: Slav Defence: 3 cxd5 (without early Nf3) and 3 Nc3} a6 {[%emt 0:02:30]} 7. Nf3 {[%emt 0:02:30]} Bd7 {[%emt 0:06:30]} 8. h4 $146 {[%emt 0:08:30]} ({Predecessor:} 8. Bd3 Nh6 9. O-O Be7 10. Bb1 Bc8 11. a3 Nf5 12. b4 h5 13. Bxf5 exf5 14. Qb3 Be6 {½-½ (36) Garcia Carey,O (2363)-Gil Alba,H (2343) Santa Clara 2017}) 8... Qb6 {[%emt 0:05:30]} 9. Be2 {[%emt 0:02:30]} Nh6 {[%emt 0:01:30]} 10. Bxh6 $1 {[%emt 0:07:30]} gxh6 {[%emt 0:00:30]} 11. Qd2 {[%emt 0:02:30]} Rg8 {[%emt 0:01:30]} 12. O-O {[%emt 0:02:30]} Na5 {[%emt 0:10:30]} (12... O-O-O $142) 13. Rac1 {[%emt 0:03:30]} Qd8 {[%emt 0:06:30]} 14. Kh1 {[%emt 0:06:30]} b5 {[%emt 0:17:30]} 15. b3 {[%emt 0:02:30]} (15. Qf4 $18) 15... Rc8 {[%emt 0:04:30]} 16. Nb1 {[%emt 0:03:30]} (16. Bd3 $18) 16... Nc6 {[%emt 0:03:30]} 17. Qf4 {[%emt 0:04:30]} Ne7 {[%emt 0:05:30]} 18. Rxc8 {[%emt 0:02:30]} Bxc8 {[%emt 0:00:30]} 19. g3 {[%emt 0:03:30]} Nf5 {[%emt 0:02:30]} 20. Nc3 {[%emt 0:05:30]} (20. Nh2 $142) 20... h5 {[%emt 0:01:30]} 21. Qc1 {[%emt 0:01:30]} Bh6 {[%emt 0:02:30]} 22. Qc2 {[%emt 0:00:00]} Rg4 {[%emt 0:08:09]} 23. Rd1 {[%emt 0:03:00]} Bd7 {[%emt 0:08:28]} 24. Bf1 {[%emt 0:04:30]} Qb6 {[%emt 0:03:11]} 25. Ne2 {[%emt 0:00:30]} Rg6 {[%emt 0:00:35]} 26. Bh3 {[%emt 0:03:30]} Ne7 {[%emt 0:00:02]} 27. Ne1 {[%emt 0:00:30]} Rg7 {[%emt 0:03:45]} (27... b4 $16 28. Bg2 Bb5) 28. Nd3 {[%emt 0:00:30]} Ng6 {[%emt 0:00:14]} 29. Bg2 {[%emt 0:01:30]} Bc6 {[%emt 0:00:01]} (29... Qd8 {was called for.} 30. Nc5 Bc8 31. Nxa6 Bxa6) 30. Bf3 {[%emt 0:01:30]} Bd7 {[%emt 0:00:51]} 31. Bxh5 {[%emt 0:00:30]} Nxh4 {[%emt 0:00:27]} 32. Qc5 {[%emt 0:08:30]} ({And not} 32. gxh4 Qd8 $11) 32... Qxc5 {[%emt 0:01:29]} 33. Nxc5 {[%emt 0:00:30]} Nf5 {[%emt 0:00:02]} 34. Nxa6 {[%emt 0:00:00]} Rg8 {[%emt 0:00:27]} 35. Nc5 {[%emt 0:01:00]} Ke7 $18 {[%emt 0:00:11]} 36. Bxf7 {[%emt 0:00:30]} Ra8 {[%emt 0:01:06]} 37. Ra1 {[%emt 0:00:54]} Bc8 {[%emt 0:01:11]} 38. Bg8 {[%emt 0:01:10]} b4 {[%emt 0:00:46]} 39. Bxh7 {[%emt 0:00:19]} Ba6 {[%emt 0:00:18]} 40. Nxa6 {[%emt 0:02:32]} Rxa6 {[%emt 0:00:06]} 41. Bxf5 {[%emt 0:00:05]} exf5 {[%emt 0:00:00]} 42. f4 {[%emt 0:00:14]} Rc6 {[%emt 0:00:28]} 43. Kg1 {[%emt 0:00:42]} Rc2 {[%emt 0:00:12]} 44. Kf1 {[%emt 0:00:06]} Kf7 {[%emt 0:00:07]} 45. a3 {[%emt 0:00:07]} Kg6 {[%emt 0:00:15]} 46. axb4 {[%emt 0:00:08]} Bf8 {[%emt 0:00:34]} 47. Ra6+ {[%emt 0:00:07]} Kh5 {[%emt 0:00:04]} 48. b5 {[%emt 0:00:30]} Kg4 {[%emt 0:00:41]} 49. b6 {[%emt 0:00:24]} Kf3 {[%emt 0:00:06]} 50. b7 {[%emt 0:01:01]} Rb2 {[%emt 0:01:18]} 51. Ng1+ {[%emt 0:00:11]} 1-0

[Event "Konyaalti Open-B 2019"]
[Site "Konyaalti"]
[Date "2019.11.21"]
[Round "6.14"]
[White "Yildiz, Tunahan"]
[Black "Atik, Muhammed Ihsan"]
[Result "0-1"]
[ECO "D35"]
[WhiteElo "1752"]
[BlackElo "1533"]
[Annotator "NA"]
[PlyCount "132"]
[EventDate "2019.11.20"]
[EventType "swiss"]
[EventCountry "TUR"]
[SourceTitle "playchess.com"]
[Source "ChessBase"]
[SourceQuality "1"]
[TimeControl "5400+30"]

1. d4 {[%emt 0:00:30]} d5 {[%emt 0:00:30]} 2. c4 {[%emt 0:00:00]} e6 {[%emt 0:00:00]} 3. Nc3 {[%emt 0:00:00]} Nf6 {[%emt 0:00:00]} 4. cxd5 {[%emt 0:00:30]} exd5 {[%emt 0:00:30]} 5. Bg5 {[%emt 0:00:00]} Nbd7 {[%emt 0:02:30]} 6. e3 {[%emt 0:01:00]} h6 {[%emt 0:01:30]} 7. Bh4 {[%emt 0:00:00]} Be7 {[%emt 0:01:30]} 8. Bd3 {[%emt 0:00:00]} O-O {[%emt 0:02:30]} 9. Nge2 {[%emt 0:00:30]} b6 {[%emt 0:01:30]} 10. O-O {[%emt 0:01:30]} Bb7 {[%emt 0:00:30]} 11. f3 {[%emt 0:08:30]} c5 {[%emt 0:02:30]} 12. Bf2 {[%emt 0:00:30]} Rc8 {[%emt 0:04:30]} 13. Kh1 {[%emt 0:01:30]} Bd6 {[%emt 0:13:30]} 14. Qd2 {[%emt 0:12:30]} Re8 {[%emt 0:03:30]} 15. Ng3 {[%emt 0:02:30]} g6 {[%emt 0:04:30]} 16. Rae1 {[%emt 0:04:30]} h5 {[%emt 0:03:30]} 17. Nge2 {[%emt 0:11:30]} a6 {[%emt 0:03:30]} 18. Bg3 {[%emt 0:09:30]} Bxg3 {[%emt 0:00:30]} 19. Nxg3 {[%emt 0:00:30]} h4 {[%emt 0:02:30]} 20. Nge2 {[%emt 0:00:00]} Nh5 {[%emt 0:01:30]} 21. dxc5 {[%emt 0:13:00]} Nxc5 {[%emt 0:06:30]} 22. Bb1 {[%emt 0:15:13]} Qg5 {[%emt 0:10:30]} 23. Ng1 {[%emt 0:01:28]} Rcd8 {[%emt 0:08:30]} 24. Nh3 {[%emt 0:03:31]} Qf6 {[%emt 0:01:30]} 25. Ne2 {[%emt 0:02:21]} Ne6 {[%emt 0:04:30]} 26. Qc3 {[%emt 0:02:24]} d4 {[%emt 0:04:16]} 27. Nxd4 {[%emt 0:01:23]} Ng5 {[%emt 0:05:14]} 28. Nb3 {[%emt 0:02:37]} Nxh3 {[%emt 0:02:39]} 29. Qxf6 {[%emt 0:00:33]} Nxf6 {[%emt 0:00:09]} 30. gxh3 {[%emt 0:00:06]} Nd5 {[%emt 0:01:27]} 31. Be4 {[%emt 0:00:28]} f5 {[%emt 0:00:37]} 32. Bxd5+ {[%emt 0:00:27]} Bxd5 {[%emt 0:00:56]} 33. Nc1 {[%emt 0:02:05]} Kh7 {[%emt 0:03:09]} 34. Kg2 {[%emt 0:00:33]} g5 {[%emt 0:02:38]} 35. Rf2 {[%emt 0:02:26]} Rd7 {[%emt 0:00:57]} 36. Kg1 {[%emt 0:01:06]} Rde7 {[%emt 0:00:59]} 37. Rd1 {[%emt 0:00:51]} Bf7 {[%emt 0:01:58]} 38. f4 {[%emt 0:02:14]} g4 {[%emt 0:00:54]} 39. hxg4 {[%emt 0:00:28]} fxg4 {[%emt 0:00:01]} 40. Nd3 {[%emt 0:00:18]} Bh5 {[%emt 0:00:49]} 41. Rc1 {[%emt 0:00:30]} Rxe3 {[%emt 0:00:35]} 42. Ne5 {[%emt 0:00:30]} g3 {[%emt 0:00:33]} 43. Rfc2 {[%emt 0:00:46]} Re7 {[%emt 0:00:37]} 44. h3 {[%emt 0:00:30]} Kg7 {[%emt 0:00:23]} 45. Rc6 {[%emt 0:00:38]} Re4 {[%emt 0:00:30]} 46. R6c4 {[%emt 0:00:29]} Re2 {[%emt 0:00:30]} 47. Rc6 {[%emt 0:00:30]} Rxb2 {[%emt 0:00:27]} 48. Rd6 {[%emt 0:00:32]} a5 {[%emt 0:00:30]} 49. a4 {[%emt 0:00:23]} Rb4 {[%emt 0:00:36]} 50. Nc6 {[%emt 0:00:37]} Rc7 {[%emt 0:00:11]} 51. f5 {[%emt 0:00:18]} Be8 {[%emt 0:00:49]} 52. f6+ {[%emt 0:00:36]} Kf8 {[%emt 0:00:08]} 53. Rd8 {[%emt 0:00:19]} Rf4 {[%emt 0:00:12]} 54. Re1 {[%emt 0:00:48]} Rxc6 {[%emt 0:00:12]} 55. Rexe8+ {[%emt 0:00:32]} Kf7 {[%emt 0:00:03]} 56. Rf8+ {[%emt 0:00:24]} Ke6 {[%emt 0:01:22]} 57. Rfe8+ {[%emt 0:00:33]} Kf5 {[%emt 0:00:39]} 58. Rd1 {[%emt 0:00:30]} Rxf6 {[%emt 0:00:31]} 59. Rd5+ {[%emt 0:00:31]} Kg6 {[%emt 0:00:07]} 60. Re1 {[%emt 0:00:24]} Rxa4 {[%emt 0:00:18]} 61. Rf1 {[%emt 0:00:30]} Rxf1+ {[%emt 0:00:24]} 62. Kxf1 {[%emt 0:00:04]} Rb4 {[%emt 0:00:03]} 63. Kg2 {[%emt 0:00:57]} a4 {[%emt 0:00:06]} 64. Rd8 {[%emt 0:00:33]} a3 {[%emt 0:00:08]} 65. Ra8 {[%emt 0:00:34]} Rb2+ {[%emt 0:00:02]} 66. Kf3 {[%emt 0:00:08]} a2 {[%emt 0:00:07]} 0-1

[Event "Konyaalti Open-B 2019"]
[Site "Konyaalti"]
[Date "2019.11.21"]
[Round "6.15"]
[White "Ipek, Egehan"]
[Black "Ekici, Kaan Muhammed"]
[Result "0-1"]
[ECO "E60"]
[WhiteElo "1590"]
[BlackElo "1738"]
[Annotator "NA"]
[PlyCount "74"]
[EventDate "2019.11.20"]
[EventType "swiss"]
[EventCountry "TUR"]
[SourceTitle "playchess.com"]
[Source "ChessBase"]
[SourceQuality "1"]
[TimeControl "5400+30"]

1. Nf3 {[%emt 0:00:30]} Nf6 {[%emt 0:05:30]} 2. b3 {[%emt 0:00:00]} g6 {[%emt 0:00:30]} 3. Bb2 {[%emt 0:00:00]} Bg7 {[%emt 0:00:30]} 4. g3 {[%emt 0:00:30]} O-O {[%emt 0:00:00]} 5. Bg2 {[%emt 0:00:00]} d6 {[%emt 0:01:00]} 6. d4 {[%emt 0:00:00]} c6 {[%emt 0:03:30]} 7. c4 {[%emt 0:01:30]} Qc7 {[%emt 0:04:30]} 8. Nbd2 {[%emt 0:02:30]} a5 {[%emt 0:00:30]} 9. a3 {[%emt 0:04:30]} Re8 {[%emt 0:06:30]} 10. O-O {[%emt 0:01:30]} e5 {[%emt 0:00:00]} 11. dxe5 {[%emt 0:00:30]} dxe5 {[%emt 0:00:00]} 12. Ng5 {[%emt 0:01:30]} h6 {[%emt 0:04:30]} 13. Nge4 {[%emt 0:01:30]} Nxe4 {[%emt 0:00:30]} 14. Nxe4 {[%emt 0:00:30]} Rd8 {[%emt 0:01:30]} 15. Qc2 {[%emt 0:01:30]} f5 {[%emt 0:00:30]} 16. Nc5 {[%emt 0:01:30]} Na6 {[%emt 0:14:30]} 17. Na4 {[%emt 0:05:30]} Be6 {[%emt 0:01:30]} 18. Rab1 {[%emt 0:08:30]} Rd7 {[%emt 0:07:30]} 19. Rfd1 {[%emt 0:04:30]} Rad8 {[%emt 0:05:30]} 20. Rxd7 {[%emt 0:16:30]} Qxd7 {[%emt 0:01:30]} 21. Bc3 {[%emt 0:00:30]} Qc7 {[%emt 0:05:30]} 22. c5 {[%emt 0:04:30]} e4 {[%emt 0:12:30]} 23. Bd2 {[%emt 0:12:30]} Rd5 {[%emt 0:03:30]} 24. Bf4 {[%emt 0:07:30]} Qd8 {[%emt 0:00:30]} 25. Bd6 {[%emt 0:03:30]} Qf6 {[%emt 0:00:30]} 26. b4 {[%emt 0:04:32]} axb4 {[%emt 0:01:56]} 27. axb4 {[%emt 0:00:01]} Rd4 {[%emt 0:02:12]} 28. b5 {[%emt 0:02:01]} Nb4 {[%emt 0:00:02]} 29. bxc6 {[%emt 0:01:02]} Nxc2 {[%emt 0:02:29]} 30. cxb7 {[%emt 0:00:02]} Rxa4 {[%emt 0:00:34]} 31. b8=Q+ {[%emt 0:00:02]} Kh7 {[%emt 0:00:15]} 32. Rb7 {[%emt 0:02:08]} Bd5 {[%emt 0:05:30]} 33. Rd7 {[%emt 0:03:56]} Nd4 {[%emt 0:01:53]} 34. Bf8 {[%emt 0:01:12]} Nxe2+ {[%emt 0:00:31]} 35. Kf1 {[%emt 0:00:06]} Qa1+ {[%emt 0:01:24]} 36. Kxe2 {[%emt 0:00:16]} Ra2+ {[%emt 0:00:01]} 37. Ke3 {[%emt 0:00:33]} Qc1# {[%emt 0:00:42]} 0-1

[Event "Konyaalti Open-B 2019"]
[Site "Konyaalti"]
[Date "2019.11.22"]
[Round "7.11"]
[White "Ekici, Kaan Muhammed"]
[Black "Kazik, Oguz Kagan"]
[Result "0-1"]
[ECO "B22"]
[WhiteElo "1738"]
[BlackElo "1638"]
[Annotator "NA"]
[PlyCount "54"]
[EventDate "2019.11.20"]
[EventType "swiss"]
[EventCountry "TUR"]
[SourceTitle "playchess.com"]
[Source "ChessBase"]
[SourceQuality "1"]
[TimeControl "5400+30"]

1. e4 {[%emt 0:00:30]} c5 {[%emt 0:00:30]} 2. c3 {[%emt 0:00:30]} Nf6 {[%emt 0:00:30]} 3. e5 {[%emt 0:00:30]} Nd5 {[%emt 0:00:30]} 4. d4 {[%emt 0:00:30]} cxd4 {[%emt 0:00:30]} 5. Nf3 {[%emt 0:00:30]} Nc6 {[%emt 0:00:30]} 6. cxd4 {[%emt 0:00:30]} d6 {[%emt 0:00:30]} 7. Bc4 {[%emt 0:00:30]} Nb6 {[%emt 0:00:00]} 8. Bd3 {[%emt 0:07:30]} Bg4 {[%emt 0:00:00]} 9. exd6 {[%emt 0:13:30]} e6 {[%emt 0:14:30]} 10. Nc3 {[%emt 0:04:30]} Bxd6 {[%emt 0:07:30]} 11. Be3 {[%emt 0:07:30]} Rc8 {[%emt 0:06:30]} 12. Rc1 {[%emt 0:01:30]} a6 {[%emt 0:12:30]} 13. O-O {[%emt 0:07:30]} Bb8 {[%emt 0:06:30]} 14. Re1 {[%emt 0:02:30]} Nd5 {[%emt 0:03:30]} 15. h3 {[%emt 0:17:30]} Bh5 {[%emt 0:01:30]} 16. g4 {[%emt 0:05:30]} Bg6 {[%emt 0:00:30]} 17. Bg5 {[%emt 0:01:30]} Nxc3 {[%emt 0:03:30]} 18. Rxc3 {[%emt 0:02:30]} Qd6 {[%emt 0:02:30]} 19. d5 {[%emt 0:03:30]} Qxd5 {[%emt 0:10:30]} 20. Bxg6 {[%emt 0:00:30]} Qxd1 {[%emt 0:15:02]} 21. Bxf7+ {[%emt 0:03:17]} Kxf7 {[%emt 0:00:39]} 22. Rxd1 {[%emt 0:00:30]} h6 {[%emt 0:00:42]} 23. Rd7+ {[%emt 0:00:30]} Kg6 {[%emt 0:00:37]} 24. Be3 {[%emt 0:00:30]} b5 {[%emt 0:00:36]} 25. Kg2 {[%emt 0:00:30]} Rhf8 {[%emt 0:00:34]} 26. h4 {[%emt 0:00:30]} Ne5 {[%emt 0:00:51]} 27. Bd4 {[%emt 0:03:21]} Nxd7 {[%emt 0:00:22]} 0-1